bitfinex/quotes_SOLUSD_20250625
["timestamp","ask_amount","ask_price","bid_price","bid_amount"]
[1750846992585,5.54991764,145.7,145.66,5.54991764]
[1750846992885,5.54991764,145.71,145.67,28.34]
[1750846993080,5.54991764,145.71,145.67,33.88991764]
[1750846993259,5.54991764,145.72,145.67,33.88991764]
[1750846993458,32.86220831,145.73,145.67,33.88991764]
[1750846993678,5.54991764,145.72,145.68,6.86436024]
[1750846993991,5.54991764,145.72,145.69,6.2]
[1750846994486,5.54991764,145.71,145.69,6.2]
[1750846995468,5.54991764,145.73,145.69,135.6337932]
[1750846995674,6.86147393,145.75,145.69,135.6337932]
[1750846995864,26.0,145.74,145.69,135.6337932]
[1750846996180,31.54991764,145.74,145.69,135.6337932]
[1750846996566,5.54991764,145.75,145.7,5.54991764]
[1750846996766,12.41101141,145.75,145.71,28.3]
[1750846997307,5.54991764,145.75,145.71,28.3]
[1750846997480,5.54991764,145.75,145.71,40.71278189]
[1750846998065,31.54991764,145.76,145.71,42.32698189]
[1750846998259,38.41052584,145.76,145.71,42.32698189]
[1750846998469,5.54991764,145.75,145.71,42.32698189]
[1750846998954,38.41052584,145.76,145.71,42.32698189]
[1750846999494,5.11726223,145.79,145.71,36.77706425]
[1750846999659,5.54991764,145.77,145.71,36.77706425]
[1750846999859,5.54991764,145.76,145.71,36.77706425]
[1750847000061,5.54991764,145.76,145.72,5.54991764]
[1750847000284,5.54991764,145.77,145.73,33.82991764]
[1750847000585,5.54991764,145.76,145.73,28.28]
[1750847001504,5.54991764,145.76,145.73,35.14196687]
[1750847001793,31.54991764,145.77,145.73,35.14196687]
[1750847002969,5.54991764,145.77,145.73,40.69188451]
[1750847003791,5.54991764,145.77,145.73,28.28]
[1750847004288,6.85980121,145.78,145.73,28.28]
[1750847004591,5.54991764,145.77,145.73,35.14186344]
[1750847005088,26.0,145.79,145.74,5.54991764]
[1750847005089,32.85932507,145.79,145.74,5.54991764]
[1750847005278,5.54991764,145.78,145.75,6.18]
[1750847005674,5.54991764,145.77,145.75,6.18]
[1750847007199,5.54991764,145.78,145.75,6.18]
[1750847008295,5.54991764,145.77,145.75,6.18]
[1750847008493,5.54991764,145.76,145.75,94.88]
[1750847008700,5.54991764,145.76,145.75,6.18]
[1750847008874,26.0,145.76,145.75,6.18]
[1750847009294,31.54991764,145.76,145.75,6.18]
[1750847010394,38.41051039,145.76,145.75,6.18]
[1750847011079,26.0,145.76,145.75,6.18]
[1750847011394,5.54991764,145.76,145.75,6.18]
[1750847012600,12.41051039,145.76,145.75,6.18]
[1750847012896,6.86059275,145.76,145.75,6.18]
[1750847013084,12.41051039,145.76,145.75,6.18]
[1750847013604,38.41051039,145.76,145.75,6.18]
[1750847018375,43.96042803,145.76,145.75,6.18]
[1750847018902,17.96042803,145.76,145.75,6.18]
[1750847019075,43.96042803,145.76,145.75,6.18]
[1750847019280,17.96042803,145.76,145.75,6.18]
[1750847020101,38.41051039,145.76,145.75,6.18]
[1750847021482,12.41051039,145.76,145.75,6.18]
[1750847024782,38.41051039,145.76,145.75,6.18]
[1750847025686,5.10622673,145.78,145.75,6.18]
[1750847025998,31.54991764,145.78,145.75,6.18]
[1750847026708,26.0,145.78,145.75,6.18]
[1750847026900,26.0,145.78,145.75,11.72991764]
[1750847027406,26.0,145.78,145.75,6.18]
[1750847028313,31.54991764,145.78,145.75,6.18]
[1750847029310,6.85963482,145.79,145.75,6.18]
[1750847029516,5.54991764,145.78,145.75,6.18]
[1750847030090,12.40961799,145.78,145.75,6.18]
[1750847031115,5.54991764,145.78,145.75,6.18]
[1750847033525,12.40960828,145.78,145.75,6.18]
[1750847034723,12.40936862,145.79,145.75,13.04105667]
[1750847036801,12.40936862,145.79,145.75,18.59097431]
[1750847038028,5.54991764,145.78,145.75,6.18]
[1750847039336,5.54991764,145.77,145.75,6.18]
[1750847039635,6.85945098,145.79,145.75,6.18]
[1750847039836,5.54991764,145.78,145.75,6.18]
[1750847040215,12.40971665,145.78,145.75,6.18]
[1750847041433,5.54991764,145.77,145.75,6.18]
[1750847043836,5.54991764,145.77,145.75,94.88]
[1750847044341,6.85989082,145.78,145.75,94.88]
[1750847044638,5.54991764,145.77,145.75,94.88]
[1750847045541,5.54991764,145.76,145.75,94.88]
[1750847047731,12.41051039,145.76,145.75,94.88]
[1750847047909,12.41051039,145.76,145.75,6.18]
[1750847048111,17.52823965,145.76,145.75,6.18]
[1750847048314,12.41051039,145.76,145.75,6.18]
[1750847048529,17.52823965,145.76,145.75,6.18]
[1750847048742,12.41051039,145.76,145.75,6.18]
[1750847048917,17.52823965,145.76,145.75,6.18]
[1750847049119,12.41051039,145.76,145.75,6.18]
[1750847049334,17.52823965,145.76,145.75,6.18]
[1750847049641,12.41051039,145.76,145.75,6.18]
[1750847049833,17.52823965,145.76,145.75,6.18]
[1750847050137,12.41051039,145.76,145.75,6.18]
[1750847050440,17.52823965,145.76,145.75,6.18]
[1750847050646,12.41051039,145.76,145.75,6.18]
[1750847050829,17.52823965,145.76,145.75,6.18]
[1750847051019,12.41051039,145.76,145.75,6.18]
[1750847051214,17.52823965,145.76,145.75,6.18]
[1750847051416,12.41051039,145.76,145.75,6.18]
[1750847051644,17.52823965,145.76,145.75,6.18]
[1750847051818,12.41051039,145.76,145.75,6.18]
[1750847052137,17.52823965,145.76,145.75,6.18]
[1750847052312,12.41051039,145.76,145.75,6.18]
[1750847052515,17.52823965,145.76,145.75,6.18]
[1750847052744,12.41051039,145.76,145.75,6.18]
[1750847052946,17.52823965,145.76,145.75,6.18]
[1750847053249,12.41051039,145.76,145.75,6.18]
[1750847053422,17.52823965,145.76,145.75,6.18]
[1750847053617,12.41051039,145.76,145.75,6.18]
[1750847053812,17.52823965,145.76,145.75,6.18]
[1750847054041,12.41051039,145.76,145.75,6.18]
[1750847054243,17.52823965,145.76,145.75,6.18]
[1750847054454,12.41051039,145.76,145.75,6.18]
[1750847054617,17.52823965,145.76,145.75,6.18]
[1750847054817,12.41051039,145.76,145.75,6.18]
[1750847055030,17.52823965,145.76,145.75,6.18]
[1750847055318,12.41051039,145.76,145.75,6.18]
[1750847055520,17.52823965,145.76,145.75,6.18]
[1750847055817,12.41051039,145.76,145.75,6.18]
[1750847056017,11.97832201,145.76,145.75,6.18]
[1750847056217,12.41051039,145.76,145.75,6.18]
[1750847056444,17.52823965,145.76,145.75,6.18]
[1750847056633,12.41051039,145.76,145.75,6.18]
[1750847056824,17.52823965,145.76,145.75,6.18]
[1750847057026,12.41051039,145.76,145.75,6.18]
[1750847057224,17.52823965,145.76,145.75,6.18]
[1750847057531,12.41051039,145.76,145.75,6.18]
[1750847057731,17.52823965,145.76,145.75,6.18]
[1750847058041,12.41051039,145.76,145.75,6.18]
[1750847058244,17.52823965,145.76,145.75,6.18]
[1750847058416,12.41051039,145.76,145.75,6.18]
[1750847058621,17.52823965,145.76,145.75,6.18]
[1750847058825,12.41051039,145.76,145.75,6.18]
[1750847059344,6.86059275,145.76,145.75,6.18]
[1750847059547,5.54991764,145.76,145.75,6.18]
[1750847059744,31.54991764,145.76,145.75,6.18]
[1750847061530,5.12825393,145.78,145.75,6.18]
[1750847061832,5.54991764,145.77,145.75,6.18]
[1750847062250,11.98765625,145.79,145.73,28.36]
[1750847062251,5.54991764,145.76,145.73,28.36]
[1750847062424,5.54991764,145.75,145.71,6.5304]
[1750847062755,6.86088188,145.76,145.72,6.12]
[1750847062756,5.54991764,145.74,145.72,6.12]
[1750847064027,12.41150111,145.74,145.72,6.12]
[1750847064348,5.54991764,145.73,145.7,6.86337342]
[1750847064558,5.54991764,145.71,145.69,1.5377]
[1750847064729,5.54991764,145.7,145.69,6.12]
[1750847065631,17.54202838,145.7,145.69,6.12]
[1750847065834,6.86341798,145.7,145.69,6.12]
[1750847066043,38.41333562,145.7,145.69,6.12]
[1750847072963,26.0,145.7,145.69,6.12]
[1750847073131,38.41333562,145.7,145.69,6.12]
[1750847073335,12.41333562,145.7,145.69,6.12]
[1750847073730,38.41333562,145.7,145.69,6.12]
[1750847074850,12.41333562,145.7,145.69,6.12]
[1750847075149,38.41333562,145.7,145.69,6.12]
[1750847075353,12.41333562,145.7,145.69,6.12]
[1750847075559,38.41333562,145.7,145.69,6.12]
[1750847075734,12.41333562,145.7,145.69,6.12]
[1750847077053,38.41333562,145.7,145.69,6.12]
[1750847077549,12.41333562,145.7,145.69,6.12]
[1750847078353,38.41333562,145.7,145.69,6.12]
[1750847078549,12.41333562,145.7,145.69,6.12]
[1750847078727,6.86341798,145.7,145.69,6.12]
[1750847078932,12.41333562,145.7,145.69,6.12]
[1750847079444,38.41333562,145.7,145.69,6.12]
[1750847079650,12.41333562,145.7,145.69,6.12]
[1750847080957,38.41333562,145.7,145.69,6.12]
[1750847089449,12.41333562,145.7,145.69,6.12]
[1750847090376,38.41333562,145.7,145.69,6.12]
[1750847090559,12.41333562,145.7,145.69,6.12]
[1750847092284,5.54991764,145.7,145.69,6.12]
[1750847092576,12.41262249,145.72,145.69,6.12]
[1750847092758,5.54991764,145.71,145.69,6.12]
[1750847092953,5.54991764,145.7,145.69,6.12]
[1750847093148,31.54991764,145.7,145.69,6.12]
[1750847093856,26.0,145.7,145.69,6.12]
[1750847094259,5.54991764,145.72,145.69,6.12]
[1750847095143,5.54991764,145.71,145.69,6.12]
[1750847095468,5.54991764,145.7,145.69,6.12]
[1750847095960,5.54991764,145.72,145.69,6.12]
[1750847096170,5.54991764,145.72,145.69,12.98387329]
[1750847097172,31.54991764,145.73,145.69,12.98387329]
[1750847100170,5.54991764,145.72,145.69,12.98387329]
[1750847100671,5.54991764,145.7,145.69,6.12]
[1750847101055,31.54991764,145.7,145.69,6.12]
[1750847101763,26.0,145.7,145.69,6.12]
[1750847101954,31.54991764,145.7,145.69,6.12]
[1750847102773,38.41333562,145.7,145.69,6.12]
[1750847106146,26.0,145.7,145.69,6.12]
[1750847106347,5.54991764,145.7,145.69,6.12]
[1750847106573,12.41333562,145.7,145.69,6.12]
[1750847106876,38.41333562,145.7,145.69,6.12]
[1750847108560,43.53796392,145.7,145.69,6.12]
[1750847108869,17.53796392,145.7,145.69,6.12]
[1750847109066,12.41333562,145.7,145.69,6.12]
[1750847109275,43.53796392,145.7,145.69,6.12]
[1750847109462,38.41333562,145.7,145.69,6.12]
[1750847110771,43.54331175,145.7,145.69,6.12]
[1750847110964,38.41333562,145.7,145.69,6.12]
[1750847111169,43.54331175,145.7,145.69,6.12]
[1750847111670,38.41333562,145.7,145.69,6.12]
[1750847111884,43.54331175,145.7,145.69,6.12]
[1750847112374,38.41333562,145.7,145.69,6.12]
[1750847112569,43.54331175,145.7,145.69,6.12]
[1750847112768,38.41333562,145.7,145.69,6.12]
[1750847112985,43.54331175,145.7,145.69,6.12]
[1750847113197,26.0,145.67,145.64,6.18]
[1750847113358,5.54991764,145.66,145.64,6.18]
[1750847114284,5.54991764,145.65,145.64,6.18]
[1750847114788,12.41569175,145.65,145.64,6.18]
[1750847115986,5.54991764,145.65,145.64,6.18]
[1750847117066,12.41569175,145.65,145.64,6.18]
[1750847117770,31.54991764,145.66,145.64,6.18]
[1750847117971,6.86341798,145.7,145.64,11.72991764]
[1750847118181,26.0,145.67,145.64,18.59615216]
[1750847118485,26.0,145.67,145.64,20.13385216]
[1750847118673,26.0,145.67,145.64,14.58393452]
[1750847118879,26.0,145.67,145.64,20.13385216]
[1750847119387,5.12780672,145.69,145.64,20.13385216]
[1750847119388,6.86403473,145.69,145.64,20.13385216]
[1750847119688,5.54991764,145.68,145.64,20.13385216]
[1750847121663,11.99184145,145.69,145.64,20.13385216]
[1750847121870,5.54991764,145.69,145.65,5.54991764]
[1750847122395,38.41350903,145.7,145.66,5.54991764]
[1750847122570,38.41350903,145.7,145.66,95.56529096]
[1750847122998,26.0,145.7,145.66,101.1152086]
[1750847123179,31.54991764,145.7,145.66,12.4152086]
[1750847123380,5.54991764,145.7,145.66,12.4152086]
[1750847123766,11.99086526,145.71,145.66,12.4152086]
[1750847123986,5.54991764,145.7,145.66,12.4152086]
[1750847125266,43.54032418,145.72,145.67,5.54991764]
[1750847125464,38.41251746,145.72,145.67,5.54991764]
[1750847126297,38.41251746,145.72,145.68,6.86436024]
[1750847126467,32.86259982,145.72,145.68,6.86436024]
[1750847126666,38.41251746,145.72,145.68,6.86436024]
[1750847126968,31.54991764,145.72,145.68,12.41427788]
[1750847127776,38.41248224,145.72,145.68,12.41427788]
[1750847128388,31.54991764,145.72,145.68,12.41427788]
[1750847128779,31.54991764,145.72,145.69,6.14]
[1750847129093,26.0,145.72,145.69,11.68991764]
[1750847129675,6.86168213,145.74,145.69,11.68991764]
[1750847129676,12.41159977,145.74,145.69,11.68991764]
[1750847129991,12.41159977,145.74,145.69,13.31821764]
[1750847130494,31.12446519,145.75,145.71,5.54991764]
[1750847130495,31.54991764,145.75,145.71,5.54991764]
[1750847130710,31.54991764,145.75,145.71,94.24991764]
[1750847132077,38.41098819,145.75,145.71,94.24991764]
[1750847132506,38.41098819,145.75,145.71,101.11276217]
[1750847133312,5.54991764,145.73,145.71,88.7]
[1750847135099,5.54991764,145.74,145.71,88.7]
[1750847135498,12.41150696,145.74,145.71,88.7]
[1750847136676,5.54991764,145.73,145.71,88.7]
[1750847137282,6.86158932,145.74,145.71,88.7]
[1750847137504,5.54991764,145.73,145.71,88.7]
[1750847139187,12.41150696,145.74,145.71,88.7]
[1750847139925,38.41120108,145.75,145.71,95.56292865]
[1750847140288,38.41120108,145.75,145.71,101.11284629]
[1750847143085,31.54991764,145.75,145.71,101.11284629]
[1750847145101,31.54991764,145.75,145.71,95.56292865]
[1750847145302,5.54991764,145.74,145.71,88.7]
[1750847145483,5.54991764,145.73,145.71,88.7]
[1750847147433,32.86108529,145.75,145.71,88.7]
[1750847147583,5.54991764,145.74,145.71,88.7]
[1750847148509,26.0,145.75,145.72,5.54991764]
[1750847148686,26.0,145.75,145.71,101.11266901]
[1750847148881,38.41107921,145.75,145.71,95.56275137]
[1750847150519,38.41107921,145.75,145.71,88.7]
[1750847150699,26.0,145.75,145.71,101.11245431]
[1750847151202,26.0,145.75,145.72,5.54991764]
[1750847151814,5.11116578,145.78,145.72,5.54991764]
[1750847151995,6.85936733,145.79,145.75,5.54991764]
[1750847152196,38.40882695,145.8,145.76,6.12]
[1750847152397,5.54991764,145.79,145.76,6.12]
[1750847153122,5.54991764,145.82,145.78,5.54991764]
[1750847153294,5.54991764,145.82,145.77,5.54991764]
[1750847154313,12.40799713,145.82,145.77,12.40993997]
[1750847155016,32.85744155,145.83,145.77,6.86002233]
[1750847155325,5.54991764,145.82,145.78,5.54991764]
[1750847156017,32.85744155,145.83,145.76,18.53025701]
[1750847156320,5.54991764,145.81,145.77,5.54991764]
[1750847156618,32.85744155,145.83,145.79,5.54991764]
[1750847156619,38.40735919,145.83,145.79,5.54991764]
[1750847157188,31.54991764,145.83,145.79,5.54991764]
[1750847158513,31.54991764,145.83,145.79,12.40898183]
[1750847158813,38.40725734,145.83,145.79,12.40898183]
[1750847159004,38.40725734,145.83,145.79,6.85906419]
[1750847160121,38.40725734,145.83,145.78,12.40940055]
[1750847160288,5.54991764,145.82,145.78,12.40940055]
[1750847160798,5.54991764,145.79,145.76,6.12]
[1750847161004,5.54991764,145.8,145.76,101.68055107]
[1750847161299,50.00058868,145.83,145.79,5.54991764]
[1750847161300,26.0,145.83,145.79,5.54991764]
[1750847161511,26.0,145.83,145.81,5.54991764]
[1750847161720,6.41086595,145.9,145.82,11.66991764]
[1750847162017,5.54991764,145.87,145.82,11.66991764]
[1750847162318,5.54991764,145.86,145.82,18.52766418]
[1750847162999,5.54991764,145.86,145.82,12.97774654]
[1750847163892,26.0,145.86,145.82,18.52766418]
[1750847164101,31.54991764,145.86,145.82,12.97774654]
[1750847165125,26.0,145.86,145.82,18.52766418]
[1750847166023,5.09729064,145.89,145.83,5.54991764]
[1750847166215,8.30952917,145.91,145.88,5.54991764]
[1750847166409,1.4558349,145.91,145.89,6.12]
[1750847166598,1.4558349,145.91,145.89,11.66991764]
[1750847166999,1.4558349,145.91,145.89,6.12]
[1750847167621,1.4558349,145.91,145.89,13.19931764]
[1750847168397,1.4558349,145.91,145.89,7.6494]
[1750847169098,1.4558349,145.91,145.9,24.1995665]
[1750847169523,6.84884596,146.01,145.94,18.64964886]
[1750847169736,5.07805022,146.04,145.95,42.5062]
[1750847170028,5.07805022,146.09,146.03,5.54991764]
[1750847170331,6.84369011,146.12,146.04,34.4]
[1750847170501,6.84369011,146.12,145.99,18.64964886]
[1750847170502,6.84369011,146.12,146.05,6.12]
[1750847170693,26.0,146.09,146.06,18.64964886]
[1750847170922,6.84369011,146.12,146.06,18.64964886]
[1750847171121,17.10646705,146.15,146.01,18.64964886]
[1750847171122,26.0,146.1,146.01,18.64964886]
[1750847171325,5.54991764,146.04,146.03,6.12]
[1750847171513,27.10892851,146.13,146.03,6.12]
[1750847171718,5.54991764,146.06,146.03,6.12]
[1750847171899,31.54991764,146.04,146.03,6.12]
[1750847172300,26.0,146.04,146.03,6.12]
[1750847172505,18.64964886,146.11,146.03,6.12]
[1750847172730,31.54991764,146.08,146.03,6.12]
[1750847173032,17.10892851,146.13,146.03,6.12]
[1750847173236,18.64964886,146.12,146.03,14.58460264]
[1750847173423,6.84275352,146.14,146.08,5.54991764]
[1750847173747,26.0,146.11,146.04,55.1080413]
[1750847173949,26.0,146.11,146.04,54.42364886]
[1750847174121,5.54991764,146.1,146.04,54.42364886]
[1750847174319,5.54991764,146.1,146.06,5.54991764]
[1750847174522,26.0,146.11,146.05,5.54991764]
[1750847174871,5.54991764,146.06,146.03,6.12]
[1750847175032,6.84790796,146.03,145.96,6.85073724]
[1750847175230,5.54991764,146.0,145.96,12.40065488]
[1750847175541,5.54991764,146.02,145.98,30.0]
[1750847175743,5.54991764,146.02,145.97,5.54991764]
[1750847176041,5.54991764,145.99,145.95,13.083]
[1750847176238,26.0,146.0,145.95,6.78]
[1750847176630,9.21474874,145.96,145.95,6.78]
[1750847177560,26.0,146.04,145.95,22.84626611]
[1750847177758,9.21474874,146.03,145.98,9.21474874]
[1750847178133,9.21474874,146.03,145.99,9.21474874]
[1750847178340,35.21474874,146.04,145.99,9.21474874]
[1750847178539,6.84790796,146.03,145.99,9.21474874]
[1750847178752,16.0626567,146.03,145.99,9.21474874]
[1750847178951,16.0626567,146.03,145.98,9.21474874]
[1750847179961,9.21474874,146.02,145.97,9.21474874]
[1750847180255,35.21474874,146.0,145.95,15.99474874]
[1750847180456,9.21474874,145.99,145.95,15.99474874]
[1750847180633,42.06411214,146.0,145.96,9.21474874]
[1750847181149,35.21474874,146.0,145.96,9.21474874]
[1750847181345,6.2882,146.15,146.0,18.64964886]
[1750847181552,9.21474874,146.13,146.08,9.21474874]
[1750847182355,26.0,146.13,146.08,9.21474874]
[1750847182541,26.0,146.13,146.09,9.21474874]
[1750847182934,9.21474874,146.15,146.1,9.21474874]
[1750847183258,16.05672098,146.16,146.11,9.21474874]
[1750847183438,26.0,146.15,146.11,9.21474874]
[1750847184030,16.05672098,146.16,146.11,9.21474874]
[1750847184232,6.84041316,146.19,146.14,9.21474874]
[1750847184430,9.21474874,146.17,146.08,91.92783339]
[1750847184750,9.21474874,146.16,146.12,9.21474874]
[1750847184975,26.0,146.16,146.14,9.21474874]
[1750847185157,1.4558349,146.2,146.15,9.21474874]
[1750847185451,8.29583445,146.2,146.16,9.21474874]
[1750847185634,26.0,146.19,146.17,9.21474874]
[1750847185830,1.4558349,146.2,146.14,6.78]
[1750847186033,1.4558349,146.2,146.17,9.21474874]
[1750847186230,1.4558349,146.2,146.15,6.84228532]
[1750847186533,1.4558349,146.2,146.17,9.21474874]
[1750847187044,1.4558349,146.2,146.16,9.21474874]
[1750847187657,8.2958017,146.2,146.15,6.84228532]
[1750847187859,17.51055044,146.2,146.16,9.21474874]
[1750847188029,17.51055044,146.2,146.14,13.62264397]
[1750847188232,16.05562984,146.18,146.14,6.78]
[1750847188445,9.21474874,146.18,146.14,15.99474874]
[1750847188656,17.51058394,146.2,146.15,9.21474874]
[1750847188953,26.0,146.19,146.18,9.21474874]
[1750847189156,1.4558349,146.2,146.17,9.21474874]
[1750847189759,9.21474874,146.18,146.14,6.78]
[1750847189940,35.21474874,146.19,146.15,9.21474874]
[1750847190137,26.0,146.19,146.15,9.21474874]
[1750847190554,27.4558349,146.2,146.16,9.21474874]
[1750847190861,27.4558349,146.2,146.17,9.21474874]
[1750847191073,1.4558349,146.2,146.17,9.21474874]
[1750847191375,9.21474874,146.18,146.12,22.83811379]
[1750847191535,9.21474874,146.17,146.12,6.78]
[1750847191859,35.21474874,146.18,146.14,9.21474874]
[1750847192033,35.21474874,146.18,146.13,9.21474874]
[1750847192439,6.84134911,146.17,146.13,9.21474874]
[1750847192735,9.21474874,146.14,146.06,8.2735]
[1750847192975,9.21474874,146.1,146.07,6.78]
[1750847193853,26.0,146.11,146.07,6.78]
[1750847193854,35.21474874,146.11,146.07,6.78]
[1750847194036,9.21474874,146.11,146.07,15.99474874]
[1750847194232,26.0,146.12,146.07,15.99474874]
[1750847194461,26.0,146.12,146.07,6.78]
[1750847194765,16.05890725,146.11,146.07,6.78]
[1750847195859,6.84415851,146.11,146.07,6.78]
[1750847196359,16.05890725,146.11,146.07,6.78]
[1750847196862,9.21474874,146.11,146.07,13.62584433]
[1750847197038,9.21474874,146.11,146.07,6.78]
[1750847197466,32.84381573,146.12,146.07,6.78]
[1750847197756,9.21474874,146.11,146.07,13.62599225]
[1750847197958,35.21474874,146.12,146.07,22.84074099]
[1750847198150,26.0,146.11,146.08,9.21474874]
[1750847198350,26.0,146.11,146.09,9.21474874]
[1750847198559,35.21474874,146.13,146.09,9.21474874]
[1750847198947,35.21474874,146.13,146.09,16.05979934]
[1750847199150,26.0,146.13,146.09,16.05979934]
[1750847199541,17.10312793,146.18,146.1,9.21474874]
[1750847199739,9.21474874,146.15,146.09,6.8450506]
[1750847199939,9.21474874,146.15,146.11,9.21474874]
[1750847200464,17.10312793,146.18,146.09,6.8450506]
[1750847200771,16.05713535,146.15,146.1,9.21474874]
[1750847201063,9.21474874,146.12,146.1,6.78]
[1750847201636,6.84238661,146.15,146.1,6.78]
[1750847201848,9.21474874,146.12,146.1,6.78]
[1750847202052,9.21474874,146.11,146.1,6.78]
[1750847202775,42.05890725,146.11,146.04,44.36]
[1750847202974,26.0,146.08,146.05,6.78]
[1750847203274,26.0,146.08,145.98,11.64353568]
[1750847203275,35.21474874,146.06,146.01,6.78]
[1750847203445,9.21474874,146.02,146.01,6.78]
[1750847203640,26.0,146.06,146.01,6.78]
[1750847203641,9.21474874,146.03,146.01,6.78]
[1750847203858,26.0,146.06,146.01,6.78]
[1750847204064,9.21474874,146.03,146.01,6.78]
[1750847204770,9.21474874,146.04,146.01,6.78]
[1750847204970,9.21474874,146.05,146.01,15.99474874]
[1750847205170,9.21474874,146.06,146.01,22.84341997]
[1750847205670,9.21474874,146.05,146.01,22.84341997]
[1750847205872,9.21474874,146.06,146.02,9.21474874]
[1750847206166,9.21474874,146.06,146.02,16.06296066]
[1750847206558,9.21474874,146.05,146.01,22.84341518]
[1750847206963,9.21474874,146.06,146.02,9.21474874]
[1750847207652,9.21474874,146.06,146.01,22.84341518]
[1750847208083,16.06126479,146.06,146.01,22.84341518]
[1750847208282,9.21474874,146.05,146.01,22.84341518]
[1750847208577,9.21474874,146.04,146.01,6.78]
[1750847208787,9.21474874,146.02,146.01,6.78]
[1750847209563,23.96276964,146.06,146.01,6.78]
[1750847209564,9.21474874,146.03,146.01,6.78]
[1750847209889,9.21474874,146.04,146.01,6.78]
[1750847210060,26.0,146.03,145.94,260.82543558]
[1750847210261,16.06313676,146.02,145.98,7.04]
[1750847210865,9.21474874,146.02,145.98,7.04]
[1750847211068,26.0,146.06,145.98,13.89014069]
[1750847211274,9.21474874,146.05,146.0,9.21474874]
[1750847211457,26.0,146.06,145.99,9.21474874]
[1750847211677,26.0,146.06,145.98,23.10488943]
[1750847211881,9.21474874,146.04,145.99,9.21474874]
[1750847212061,9.21474874,146.03,145.98,23.10488943]
[1750847212380,16.06306924,146.03,145.98,16.25474874]
[1750847212546,9.21474874,146.02,145.98,7.04]
[1750847212857,16.06171895,146.05,146.0,9.21474874]
[1750847213467,6.84697021,146.05,146.01,9.21474874]
[1750847214771,35.21474874,146.06,146.02,9.21474874]
[1750847215770,9.21474874,146.06,146.02,9.21474874]
[1750847216176,16.06104322,146.07,146.02,9.21474874]
[1750847216558,16.06042829,146.08,146.03,9.21474874]
[1750847216753,6.84518378,146.09,146.05,9.21474874]
[1750847217058,16.05957514,146.1,146.05,16.25474874]
[1750847217259,16.05957514,146.1,146.06,9.21474874]
[1750847217848,16.05957514,146.1,146.05,16.25474874]
[1750847218253,9.21474874,146.09,146.05,16.25474874]
[1750847218878,9.21474874,146.09,146.05,23.10165541]
[1750847219083,9.21474874,146.08,146.05,7.04]
[1750847220879,26.0,146.1,146.05,7.04]
[1750847221192,9.21474874,146.07,146.05,7.04]
[1750847221359,9.21474874,146.06,146.01,1.5886]
[1750847221558,26.0,146.1,146.02,7.04]
[1750847221559,9.21474874,146.03,146.02,7.04]
[1750847222283,17.11039627,146.11,146.02,16.25474874]
[1750847222466,26.0,146.1,146.06,9.21474874]
[1750847222779,26.0,146.1,146.02,13.88829808]
[1750847222780,9.21474874,146.08,146.03,9.21474874]
[1750847223394,9.21474874,146.09,146.04,9.21474874]
[1750847223560,9.21474874,146.09,146.05,9.21474874]
[1750847223962,26.0,146.1,146.05,9.21474874]
[1750847224178,9.21474874,146.09,146.04,9.21474874]
[1750847224507,9.21474874,146.07,146.02,7.04]
[1750847224662,9.21474874,146.04,146.02,7.04]
[1750847224861,9.21474874,146.05,146.02,7.04]
[1750847225057,9.21474874,146.04,146.02,7.04]
[1750847225270,26.0,146.07,146.02,7.04]
[1750847225497,26.0,146.06,146.02,7.04]
[1750847225792,9.21474874,146.05,146.02,7.04]
[1750847225976,9.21474874,146.04,146.02,7.04]
[1750847227680,9.21474874,146.05,146.02,7.04]
[1750847228586,16.06180372,146.05,146.02,7.04]
[1750847229206,9.21474874,146.05,146.02,7.04]
[1750847229569,16.06182037,146.05,146.02,7.04]
[1750847229774,32.84664959,146.06,146.02,7.04]
[1750847229974,9.21474874,146.04,146.02,7.04]
[1750847230397,9.21474874,146.03,146.02,7.04]
[1750847231882,9.21474874,146.03,146.0,88.7]
[1750847232081,9.21474874,146.01,146.0,88.7]
[1750847232296,23.9662863,146.04,146.0,88.7]